fUST/lending_fUST_20241221
["ID","MTS","AMOUNT","RATE_DAILY","PERIOD"]
[346144718,1734748232927,-706.98673093,0.0002097,2]
[346144719,1734748232937,-1817.51,0.0002097,2]
[346144720,1734748232946,-581.94,0.0002097,2]
[346144721,1734748232956,-8217.86,0.0002097,2]
[346144722,1734748232966,-1858.71,0.0002097,2]
[346144723,1734748232975,-2086.03905901,0.0002097,2]
[346144761,1734748238767,-500.0,0.00020969,2]
[346144762,1734748238776,-500.0,0.00020969,2]
[346144764,1734748238785,-500.0,0.00020969,2]
[346144766,1734748238794,-500.0,0.00020969,2]
[346144768,1734748238804,-500.0,0.00020969,2]
[346144770,1734748238813,-500.0,0.00020969,2]
[346144772,1734748238823,-500.0,0.00020969,2]
[346144775,1734748238832,-89.51632149,0.00020969,2]
[346144958,1734748240698,-410.48367851,0.00020969,2]
[346144960,1734748240707,-500.0,0.00020969,2]
[346144962,1734748240717,-444.84008707,0.00020969,2]
[346145614,1734748246766,-55.15991293,0.00020969,2]
[346145616,1734748246776,-500.0,0.00020969,2]
[346145618,1734748246785,-500.0,0.00020969,2]
[346145620,1734748246795,-500.0,0.00020969,2]
[346145622,1734748246804,-500.0,0.00020969,2]
[346145624,1734748246813,-500.0,0.00020969,2]
[346145626,1734748246822,-500.0,0.00020969,2]
[346145628,1734748246831,-500.0,0.00020969,2]
[346145629,1734748246841,-500.0,0.00020969,2]
[346145630,1734748246850,-500.0,0.00020969,2]
[346145631,1734748246860,-500.0,0.00020969,2]
[346145632,1734748246870,-500.0,0.00020969,2]
[346145633,1734748246879,-500.0,0.00020969,2]
[346145634,1734748246888,-500.0,0.00020969,2]
[346145635,1734748246897,-500.0,0.00020969,2]
[346145636,1734748246906,-500.0,0.00020969,2]
[346145637,1734748246915,-500.0,0.00020969,2]
[346145638,1734748246925,-500.0,0.00020969,2]
[346145639,1734748246936,-500.0,0.00020969,2]
[346145640,1734748246945,-500.0,0.00020969,2]
[346145641,1734748246954,-254.75131919,0.00020969,2]
[346145643,1734748246964,-500.0,0.00020969,2]
[346145645,1734748246974,-500.0,0.00020969,2]
[346145647,1734748246983,-500.0,0.00020969,2]
[346145649,1734748246992,-500.0,0.00020969,2]
[346145651,1734748247001,-500.0,0.00020969,2]
[346145653,1734748247010,-500.0,0.00020969,2]
[346145655,1734748247019,-500.0,0.00020969,2]
[346145657,1734748247028,-500.0,0.00020969,2]
[346145659,1734748247036,-500.0,0.00020969,2]
[346145661,1734748247045,-500.0,0.00020969,2]
[346145663,1734748247055,-500.0,0.00020969,2]
[346145665,1734748247064,-635.54642255,0.00020969,2]
[346145667,1734748247073,-500.0,0.00020969,2]
[346145669,1734748247082,-500.0,0.00020969,2]
[346145671,1734748247091,-500.0,0.00020969,2]
[346145674,1734748247101,-500.0,0.00020969,2]
[346145676,1734748247110,-500.0,0.00020969,2]
[346145678,1734748247119,-500.0,0.00020969,2]
[346145680,1734748247128,-500.0,0.00020969,2]
[346145682,1734748247137,-500.0,0.00020969,2]
[346145683,1734748247146,-500.0,0.00020969,2]
[346145686,1734748247156,-500.0,0.00020969,2]
[346145688,1734748247166,-500.0,0.00020969,2]
[346145690,1734748247175,-500.0,0.00020969,2]
[346145692,1734748247186,-500.0,0.00020969,2]
[346145694,1734748247196,-400.0,0.00020969,2]
[346145696,1734748247205,-500.0,0.00020969,2]
[346145698,1734748247214,-500.0,0.00020969,2]
[346145700,1734748247223,-500.0,0.00020969,2]
[346145702,1734748247232,-85.13094099,0.0002097,2]
[346145704,1734748247242,-3638.79,0.0002097,2]
[346145706,1734748247251,-500.0,0.0002097,2]
[346145708,1734748247260,-500.0,0.0002097,2]
[346145710,1734748247269,-1478.42,0.0002097,2]
[346145712,1734748247280,-1136.49,0.0002097,2]
[346145714,1734748247289,-1726.59,0.0002097,2]
[346145716,1734748247298,-12937.24,0.0002097,2]
[346145718,1734748247307,-1330.7,0.0002097,2]
[346145720,1734748247316,-500.0,0.0002097,2]
[346145722,1734748247325,-880.04,0.0002097,2]
[346145724,1734748247334,-500.0,0.0002097,2]
[346145726,1734748247344,-500.0,0.0002097,2]
[346145728,1734748247356,-500.0,0.0002097,2]
[346145730,1734748247366,-44846.92409144,0.00020971,2]
[346145732,1734748247375,-4216.6059991,0.00020971,2]
[346145734,1734748247388,-658.60513047,0.00020971,2]
[346145736,1734748247398,-1161.97,0.00020971,2]
[346145738,1734748247409,-211.72670853,0.00020971,2]
[346145740,1734748247421,-294.79048432,0.00020971,2]
[346145742,1734748247433,-66.99975707,0.00020971,2]
[346146935,1734748292737,157.965618,0.00013973,2]
[346146936,1734748519904,188.011,0.0001993,2]
[346146937,1734748572647,177.863976,0.0001967,2]
[346146938,1734748587578,179.865,0.0001993,2]
[346146942,1734748844316,171.6658365,0.00025,120]
[346146947,1734749151243,206.4663052,0.00019898,2]
[346146948,1734749158165,-245.6275746,0.00020135,2]
[346146949,1734749158186,-500.0,0.0002023,2]
[346146950,1734749158207,-634.09151028,0.00020798,2]
[346146952,1734749171142,500.0,0.00019218,2]
[346146953,1734749192462,500.0,0.00018257,2]
[346146954,1734749213459,500.0,0.00018089,2]
[346146955,1734749222080,172.272,0.0001993,2]
[346146956,1734749234621,500.0,0.00018089,2]
[346146957,1734749248147,-300.0,0.00020895,2]
[346146958,1734749248169,-300.0,0.00020895,2]
[346146959,1734749248192,-374.21538418,0.00020896,2]
[346146960,1734749255895,500.0,0.00018089,2]
[346146961,1734749277048,500.0,0.00018089,2]
[346146962,1734749298267,500.0,0.00018089,2]
[346146963,1734749320172,386.49990345,0.00018089,2]
[346146965,1734749326052,157.965618,0.00013973,2]
[346146966,1734749428118,1991.31307713,0.0002,2]
[346147017,1734749433044,-300.0,0.00020895,2]
[346147020,1734749433053,-300.0,0.00020895,2]
[346147023,1734749433063,-125.78461582,0.00020896,2]
[346147025,1734749433073,-500.0,0.00020896,2]
[346147027,1734749433082,-626.17182473,0.00020896,2]
[346147029,1734749433092,-500.0,0.00020896,2]
[346147031,1734749433101,-500.0,0.00020896,2]
[346147033,1734749433111,-500.0,0.00020896,2]
[346147035,1734749433120,-465.47513192,0.00020896,2]
[346147037,1734749433130,-1741.78,0.00020896,2]
[346147039,1734749433140,-557.7,0.00020896,2]
[346147041,1734749433150,-1781.26,0.00020896,2]
[346147043,1734749433160,-7875.45,0.00020896,2]
[346147045,1734749433170,-2080.71,0.00020896,2]
[346147047,1734749433180,-1416.82,0.00020896,2]
[346147049,1734749433189,-3487.17,0.00020896,2]
[346147051,1734749433198,-12398.19,0.00020896,2]
[346147053,1734749433207,-843.37,0.00020896,2]
[346147055,1734749433216,-1654.65,0.00020896,2]
[346147057,1734749433226,-1275.25,0.00020896,2]
[346147059,1734749433236,-500.0,0.00020896,2]
[346147061,1734749433246,-500.0,0.00020896,2]
[346147063,1734749433255,-500.0,0.00020896,2]
[346147065,1734749433265,-500.0,0.00020896,2]
[346147067,1734749433276,-877.65,0.00020896,2]
[346147069,1734749433285,-500.0,0.00020896,2]
[346147071,1734749433295,-97075.72011346,0.00020897,2]
[346147073,1734749433305,-5095.21000286,0.00020897,2]
[346147075,1734749433315,-500.0,0.00020897,2]
[346147077,1734749433325,-500.0,0.00020897,2]
[346147079,1734749433335,-238.03530403,0.00020897,2]
[346147081,1734749433346,-500.0,0.00020897,2]
[346147083,1734749433356,-671.92,0.00020897,2]
[346147086,1734749433366,-500.0,0.00020897,2]
[346147087,1734749433375,-713.03,0.00020897,2]
[346147090,1734749433384,-500.0,0.00020897,2]
[346147092,1734749433394,-500.0,0.00020897,2]
[346147094,1734749433404,-183.29744434,0.00020897,2]
[346147096,1734749433414,-500.0,0.00020897,2]
[346147097,1734749433423,-7182.17852414,0.00020897,2]
[346147122,1734749433690,-1638.97718917,0.00020897,2]
[346147124,1734749433702,-74.25428669,0.00020897,2]
[346147126,1734749433711,-532.5882342,0.00020897,2]
[346147615,1734749438926,-500.0,0.00020895,2]
[346147617,1734749438936,-8524.77,0.00020896,2]
[346147619,1734749438946,-20436.01578481,0.00020896,2]
[346148868,1734749504739,5000.0,0.0002,2]
[346148869,1734749512534,5000.0,0.0002,2]
[346148870,1734749518552,5000.0,0.0002,2]
[346148871,1734749525770,5000.0,0.0002,2]
[346148872,1734749531684,5000.0,0.0002,2]
[346148873,1734749537813,165.192,0.0001993,2]
[346148874,1734749541066,5000.0,0.0002,2]
[346148875,1734749547100,5000.0,0.0002,2]
[346148876,1734749553750,5000.0,0.0002,2]
[346148877,1734749559197,5000.0,0.0002,2]
[346148879,1734749601601,158.481,0.0001993,2]
[346148880,1734749627648,5000.0,0.0002,2]
[346148881,1734749634483,5000.0,0.0002,2]
[346148882,1734749642113,5000.0,0.0002,2]
[346148883,1734749652002,68355.093838,0.0001,2]
[346148884,1734749652445,2486.35289693,0.0002,2]
[346148893,1734750210353,26253.95789062,0.00025,120]
[346148895,1734750233814,157.965618,0.00013973,2]
[346148898,1734750306980,5508.46994328,0.00025,120]
[346148899,1734750342124,-500.0,0.00018424,2]
[346148900,1734750342145,-300.0,0.0001894,2]
[346148901,1734750342166,-300.0,0.0001894,2]
[346148902,1734750342187,-348.26063174,0.00018941,2]
[346148903,1734750433148,-500.0,0.00018089,2]
[346148904,1734750433170,-458.33618131,0.00018089,2]
[346148905,1734750546092,-41.66381869,0.00018089,2]
[346148906,1734750546115,-500.0,0.00018089,2]
[346148907,1734750546136,-300.0,0.0001894,2]
[346148908,1734750546161,-14523.55456026,0.00018941,2]
[346148909,1734750547113,-1849.714136,0.00018941,2]
[346148910,1734750547133,-1456.43959839,0.00019293,2]
[346148911,1734750547154,-418.98405835,0.00019393,2]
[346148912,1734750553097,-81.01594165,0.00019393,2]
[346148913,1734750553119,-1744.93,0.00019825,2]
[346148914,1734750553140,-558.71,0.00019825,2]
[346148915,1734750553163,-1805.32,0.00019825,2]
[346148916,1734750553183,-500.0,0.00019826,2]
[346148917,1734750553207,-500.0,0.00019826,2]
[346148918,1734750553227,-500.0,0.00019826,2]
[346148919,1734750553247,-500.0,0.00019826,2]
[346148920,1734750553268,-500.0,0.00019826,2]
[346148921,1734750553288,-500.0,0.00019826,2]
[346148922,1734750553308,-500.0,0.00019826,2]
[346148923,1734750553330,-500.0,0.00019826,2]
[346148924,1734750553352,-500.0,0.00019826,2]
[346148925,1734750553373,-500.0,0.00019826,2]
[346148926,1734750553394,-500.0,0.00019826,2]
[346148927,1734750553414,-500.0,0.00019826,2]
[346148928,1734750553435,-500.0,0.00019826,2]
[346148929,1734750553457,-500.0,0.00019826,2]
[346148930,1734750553477,-596.54751319,0.00019826,2]
[346148931,1734750553498,-500.0,0.00019826,2]
[346148932,1734750553519,-500.0,0.00019826,2]
[346148933,1734750553539,-500.0,0.00019826,2]
[346148934,1734750553560,-500.0,0.00019826,2]
[346148935,1734750553582,-500.0,0.00019826,2]
[346148936,1734750553605,-500.0,0.00019826,2]
[346148937,1734750553626,-500.0,0.00019826,2]
[346148938,1734750553648,-500.0,0.00019826,2]
[346148939,1734750553669,-500.0,0.00019826,2]
[346148940,1734750553690,-500.0,0.00019826,2]
[346148941,1734750553712,-500.0,0.00019826,2]
[346148942,1734750553733,-500.0,0.00019826,2]
[346148943,1734750553753,-500.0,0.00019826,2]
[346148944,1734750553774,-500.0,0.00019826,2]
[346148945,1734750553795,-200.0,0.00019826,2]
[346148946,1734750553815,-706.98673093,0.00019826,2]
[346148947,1734750553840,-5994.16827921,0.00019827,2]
[346148948,1734750568246,-1357.79,0.00019825,2]
[346148949,1734750568270,-7639.96,0.00019825,2]
[346148950,1734750568291,-11881.6,0.00019825,2]
[346148951,1734750568313,-3341.88,0.00019827,2]
[346148952,1734750568337,-1585.7,0.00019827,2]
[346148953,1734750568358,-500.0,0.00019827,2]
[346148954,1734750568380,-1222.11,0.00019827,2]
[346148955,1734750568402,-841.08,0.00019827,2]
[346148956,1734750568424,-500.0,0.00019827,2]
[346148957,1734750568446,-4765.58,0.00019827,2]
[346148958,1734750568468,-573.50295927,0.00019827,2]
[346148959,1734750568490,-25782.17,0.00019827,2]
[346148960,1734750568512,-1269.17,0.00019827,2]
[346148961,1734750568534,-500.0,0.00019827,2]
[346148962,1734750568555,-500.0,0.00019827,2]
[346148963,1734750568577,-12812.99,0.00019827,2]
[346148964,1734750568600,-153.796033,0.00019827,2]
[346148965,1734750568623,-7777.94,0.00019827,2]
[346148966,1734750568645,-564.45,0.00019827,2]
[346148967,1734750568667,-629.87176881,0.00019827,2]
[346148968,1734750568689,-1647.56,0.00019827,2]
[346148969,1734750568711,-687.24,0.00019827,2]
[346148970,1734750568733,-4711.55,0.00019827,2]
[346148971,1734750568756,-151.0,0.00019827,2]
[346148972,1734750568778,-151.0,0.00019827,2]
[346148973,1734750569001,-151.0,0.00019827,2]
[346148974,1734750569024,-500.0,0.00019827,2]
[346148975,1734750569048,-500.0,0.00019827,2]
[346148976,1734750569070,-7182.25,0.00019827,2]
[346148977,1734750569097,-783.06,0.00019827,2]
[346148978,1734750569119,-3265.35,0.00019827,2]
[346148979,1734750569139,-500.0,0.00019827,2]
[346148980,1734750569163,-151.0,0.00019827,2]
[346148981,1734750569184,-167.575333,0.00019827,2]
[346148982,1734750569205,-2405.49,0.00019827,2]
[346148983,1734750569225,-784.94,0.00019827,2]
[346148984,1734750569247,-500.0,0.00019827,2]
[346148985,1734750569268,-543.7,0.00019827,2]
[346148986,1734750569290,-3162.6,0.00019827,2]
[346148987,1734750569312,-227.36361,0.00019827,2]
[346148988,1734750569333,-1228.66,0.00019827,2]
[346148989,1734750569356,-227.36361,0.00019827,2]
[346148990,1734750569378,-527.24,0.00019827,2]
[346148991,1734750569400,-500.0,0.00019827,2]
[346148992,1734750569421,-153.011459,0.00019827,2]
[346148993,1734750569442,-14091.2017596,0.00019828,2]
[346148994,1734750569464,-151.0,0.00019828,2]
[346148995,1734750569485,-235.529764,0.00019828,2]
[346148996,1734750569507,-153.014875,0.00019828,2]
[346148997,1734750569529,-227.36361,0.00019828,2]
[346148998,1734750569551,-227.36361,0.00019828,2]
[346148999,1734750569573,-151.555,0.0001993,2]
[346149000,1734750569597,-52468.02211488,0.0002,2]
[346149001,1734750569619,-163.42629027,0.0002,2]
[346149002,1734750569641,-25662.84335452,0.0002,2]
[346149003,1734750569662,-162.262979,0.0002,2]
[346149004,1734750569683,-209.676004,0.0002,2]
[346149005,1734750569704,-209.676004,0.0002,2]
[346149006,1734750569727,-151.0,0.0002,2]
[346149007,1734750569748,-77957.63993613,0.0002,2]
[346149021,1734750639219,-500.0,0.00019725,2]
[346149023,1734750639229,-540.19,0.00019725,2]
[346149043,1734750647290,-143.92,0.00019725,2]
[346149044,1734750647300,-1089.13,0.00019725,2]
[346149045,1734750647310,-500.0,0.00019725,2]
[346149046,1734750647319,-300.0,0.00019824,2]
[346149047,1734750647328,-300.0,0.00019824,2]
[346149048,1734750647338,-2080.93,0.00019825,2]
[346149049,1734750647347,-808.23,0.00019825,2]
[346149050,1734750647357,-3202.63,0.00019825,2]
[346149051,1734750647366,-500.0,0.00019825,2]
[346149052,1734750647376,-1519.63,0.00019825,2]
[346149053,1734750647386,-806.03,0.00019825,2]
[346149054,1734750647395,-1171.19,0.00019825,2]
[346149055,1734750647406,-7971.01,0.00019825,2]
[346149056,1734750647415,-500.0,0.00019825,2]
[346149057,1734750647425,-1216.29,0.00019825,2]
[346149058,1734750647435,-24707.92,0.00019825,2]
[346149059,1734750647444,-500.0,0.00019826,2]
[346149060,1734750647453,-151.0,0.00019827,2]
[346149061,1734750647463,-6575.7,0.00019827,2]
[346149062,1734750647473,-500.0,0.00019827,2]
[346149063,1734750647483,-6022.29,0.00019827,2]
[346149064,1734750647492,-500.0,0.00019827,2]
[346149065,1734750647502,-718.46,0.00019827,2]
[346149066,1734750647511,-152.199109,0.00019827,2]
[346149067,1734750647520,-610.84,0.00019827,2]
[346149068,1734750647530,-581.98633408,0.00019827,2]
[346149069,1734750647540,-151.0,0.00019827,2]
[346149070,1734750647549,-151.0,0.00019827,2]
[346149071,1734750647559,-4824.5,0.00019827,2]
[346149072,1734750647569,-500.0,0.00019827,2]
[346149073,1734750647579,-500.0,0.00019827,2]
[346149074,1734750647589,-5349.06,0.00019827,2]
[346149075,1734750647599,-1350.51,0.00019827,2]
[346149076,1734750647609,-151.0,0.00019828,2]
[346149077,1734750647618,-1817.99389827,0.00019899,2]
[346149078,1734750647628,-1817.99389827,0.00019899,2]
[346149079,1734750647638,-1817.99389827,0.00019899,2]
[346149080,1734750647648,-1817.99389827,0.00019899,2]
[346149081,1734750647658,-1817.99389827,0.000199,2]
[346149082,1734750647668,-1817.99389827,0.000199,2]
[346149083,1734750647678,-500.0,0.00019973,2]
[346149084,1734750647688,-500.0,0.00019973,2]
[346149085,1734750647698,-500.0,0.00019973,2]
[346149086,1734750647707,-174.58218705,0.00019973,2]
[346149087,1734750647717,-501.3183754,0.00019973,2]
[346149088,1734750647727,-500.93738547,0.00019973,2]
[346149089,1734750647736,-503.22208792,0.00019973,2]
[346149090,1734750647746,-375.52285904,0.00019973,2]
[346149091,1734750647756,-500.0,0.00019998,2]
[346149092,1734750647767,-500.0,0.00019998,2]
[346149093,1734750647776,-500.0,0.00019998,2]
[346149094,1734750647786,-279.65475132,0.00019998,2]
[346149095,1734750647796,-2192.15495074,0.00019999,2]
[346149096,1734750647809,-3830.13504926,0.00019999,2]
[346149097,1734750647818,-5327.66476874,0.00019999,2]
[346149098,1734750647854,-694.62523126,0.00019999,2]
[346149099,1734750647864,-500.0,0.00019999,2]
[346149100,1734750647874,-684.11,0.00019999,2]
[346149101,1734750647884,-1089.13,0.00019999,2]
[346149102,1734750647893,-500.0,0.00019999,2]
[346149103,1734750647904,-2547.60500143,0.0002,2]
[346149104,1734750647914,-5058.74908692,0.0002,2]
[346149109,1734751089807,157.965618,0.00013973,2]
[346149111,1734751176469,100000.0,0.000219,30]
[346149112,1734751202217,10000.0,0.0002199,30]
[346149113,1734751224729,10000.0,0.0002199,30]
[346149114,1734751242102,10000.0,0.0002199,30]
[346149115,1734751254156,10000.0,0.0002199,30]
[346149116,1734751270468,10000.0,0.0002199,30]
[346149117,1734751287525,10000.0,0.0002199,30]
[346149118,1734751296846,10000.0,0.0002199,30]
[346149119,1734751387449,30000.0,0.0002,30]
[346149122,1734751551125,-173.0465451,0.00018704,2]
[346149123,1734751551148,-1469.50813374,0.00018843,2]
[346149124,1734751630093,-282.21829675,0.00018843,2]
[346149125,1734751632350,-347.05457871,0.00018843,2]
[346149126,1734751632372,-637.21691702,0.00018904,2]
[346149127,1734751751168,-4362.78308298,0.00018904,2]
[346149128,1734751751188,-177.206315,0.00019178,2]
[346149129,1734751751211,-631.92868912,0.00019623,2]
[346149130,1734751751232,-182.86245964,0.00019624,2]
[346149131,1734751751253,-631.92868907,0.00019663,2]
[346149132,1734751751274,-631.92868907,0.00019702,2]
[346149133,1734751751295,-300.0,0.0001972,2]
[346149134,1734751751316,-300.0,0.0001972,2]
[346149135,1734751751339,-1672.23,0.00019721,2]
[346149136,1734751751360,-502.28631882,0.00019721,2]
[346149137,1734751751383,-535.43,0.00019721,2]
[346149138,1734751751404,-500.0,0.00019721,2]
[346149139,1734751751427,-500.0,0.00019721,2]
[346149140,1734751751451,-500.0,0.00019721,2]
[346149141,1734751751474,-500.0,0.00019721,2]
[346149142,1734751751496,-500.0,0.00019721,2]
[346149143,1734751751520,-500.0,0.00019721,2]
[346149144,1734751751546,-500.0,0.00019721,2]
[346149145,1734751751568,-500.0,0.00019721,2]
[346149146,1734751751590,-532.67524129,0.00019721,2]
[346149147,1734751751612,-503.63058236,0.00019721,2]
[346149148,1734751751634,-1730.1,0.00019722,2]
[346149149,1734751751656,-7693.24,0.00019722,2]
[346149150,1734751751677,-914.02,0.00019722,2]
[346149151,1734751751699,-3069.19,0.00019722,2]
[346149152,1734751751719,-1301.21,0.00019722,2]
[346149153,1734751751740,-1456.31,0.00019722,2]
[346149154,1734751751762,-11386.53,0.00019722,2]
[346149155,1734751751784,-774.56,0.00019722,2]
[346149156,1734751751808,-500.0,0.00019722,2]
[346149157,1734751751829,-500.0,0.00019722,2]
[346149158,1734751751850,-772.45,0.00019722,2]
[346149159,1734751751871,-10906.67839237,0.00019722,2]
[346149160,1734751752120,-14270.59160763,0.00019722,2]
[346149161,1734751752141,-7638.88,0.00019722,2]
[346149162,1734751752164,-500.0,0.00019722,2]
[346149163,1734751752185,-1165.61,0.00019722,2]
[346149164,1734751752207,-12279.12,0.00019722,2]
[346149165,1734751752227,-500.0,0.00019722,2]
[346149166,1734751752247,-500.0,0.00019723,2]
[346149167,1734751752268,-500.47052967,0.00019723,2]
[346149168,1734751752289,-500.0,0.00019723,2]
[346149169,1734751752311,-647.93,0.00019723,2]
[346149170,1734751752331,-500.0,0.00019723,2]
[346149171,1734751752351,-998.37,0.00019723,2]
[346149172,1734751752372,-500.0,0.00019723,2]
[346149173,1734751752393,-1113.55,0.00019723,2]
[346149174,1734751752415,-1084.51,0.00019723,2]
[346149175,1734751752435,-500.0,0.00019723,2]
[346149176,1734751752461,-1269.48,0.00019723,2]
[346149177,1734751752483,-500.0,0.00019723,2]
[346149178,1734751752504,-500.0,0.00019723,2]
[346149179,1734751752524,-500.0,0.00019723,2]
[346149180,1734751752548,-504.04909903,0.00019723,2]
[346149181,1734751752569,-500.0,0.00019723,2]
[346149182,1734751752590,-500.0,0.00019723,2]
[346149183,1734751752611,-500.0,0.00019723,2]
[346149184,1734751752634,-2400.39,0.00019723,2]
[346149185,1734751752655,-500.0,0.00019723,2]
[346149186,1734751752678,-578.05,0.00019723,2]
[346149187,1734751752699,-500.0,0.00019723,2]
[346149188,1734751752720,-500.0,0.00019723,2]
[346149189,1734751752742,-561.0,0.00019723,2]
[346149190,1734751752765,-372.0,0.00019723,2]
[346149191,1734751752787,-1359.98,0.00019723,2]
[346149192,1734751752811,-500.0,0.00019723,2]
[346149193,1734751752834,-716.18,0.00019723,2]
[346149194,1734751752856,-1676.78,0.00019723,2]
[346149195,1734751752877,-484.54362151,0.00019723,2]
[346149196,1734751752898,-540.93,0.00019723,2]
[346149197,1734751752919,-778.95,0.00019723,2]
[346149198,1734751752940,-500.0,0.00019723,2]
[346149199,1734751752963,-500.0,0.00019723,2]
[346149200,1734751752983,-784.72,0.00019723,2]
[346149201,1734751753006,-500.0,0.00019723,2]
[346149202,1734751753027,-500.0,0.00019723,2]
[346149203,1734751753050,-1767.3,0.00019723,2]
[346149204,1734751753073,-7489.66,0.00019723,2]
[346149205,1734751753095,-2119.12,0.00019723,2]
[346149206,1734751753116,-502.55200498,0.00019723,2]
[346149207,1734751753138,-6882.99,0.00019723,2]
[346149208,1734751753158,-1753.0,0.00019723,2]
[346149209,1734751753179,-3129.3,0.00019723,2]
[346149210,1734751753199,-500.0,0.00019723,2]
[346149211,1734751753220,-500.0,0.00019723,2]
[346149212,1734751753241,-764.39,0.00019723,2]
[346149213,1734751753265,-1578.91,0.00019723,2]
[346149214,1734751753286,-3107.11,0.00019723,2]
[346149215,1734751753307,-608.38,0.00019723,2]
[346149216,1734751753328,-830.35,0.00019723,2]
[346149217,1734751753350,-4515.23,0.00019723,2]
[346149218,1734751753372,-521.05,0.00019723,2]
[346149219,1734751753392,-500.0,0.00019723,2]
[346149220,1734751753414,-500.0,0.00019723,2]
[346149221,1734751753434,-516.32509819,0.00019723,2]
[346149222,1734751753458,-1309.77,0.00019723,2]
[346149223,1734751753478,-500.0,0.00019723,2]
[346149224,1734751753500,-1177.46,0.00019723,2]
[346149225,1734751753520,-2464.26,0.00019723,2]
[346149226,1734751753543,-500.0,0.00019723,2]
[346149227,1734751753565,-500.0,0.00019723,2]
[346149228,1734751753586,-500.0,0.00019723,2]
[346149229,1734751753608,-500.0,0.00019723,2]
[346149230,1734751753629,-720.89,0.00019723,2]
[346149231,1734751753650,-2834.46,0.00019723,2]
[346149232,1734751753672,-6301.71,0.00019723,2]
[346149233,1734751753693,-2978.37,0.00019723,2]
[346149234,1734751753714,-907.71,0.00019723,2]
[346149235,1734751753736,-500.0,0.00019723,2]
[346149236,1734751753757,-500.0,0.00019723,2]
[346149237,1734751753781,-3065.99,0.00019723,2]
[346149238,1734751753802,-1172.54,0.00019723,2]
[346149239,1734751753825,-688.52,0.00019723,2]
[346149240,1734751753846,-888.56,0.00019723,2]
[346149241,1734751753867,-2397.87,0.00019723,2]
[346149242,1734751753889,-585.39,0.00019723,2]
[346149243,1734751753909,-500.0,0.00019723,2]
[346149244,1734751753932,-505.27,0.00019723,2]
[346149245,1734751753953,-4623.48,0.00019723,2]
[346149246,1734751753975,-500.0,0.00019723,2]
[346149247,1734751754172,-5126.18,0.00019723,2]
[346149248,1734751754195,-1148.65,0.00019723,2]
[346149249,1734751754218,-3839.26,0.00019723,2]
[346149250,1734751754241,-500.0,0.00019723,2]
[346149251,1734751754263,-500.0,0.00019723,2]
[346149252,1734751754284,-5269.5,0.00019723,2]
[346149253,1734751754307,-5269.5,0.00019723,2]
[346149254,1734751754328,-832.47,0.00019723,2]
[346149255,1734751754349,-500.0,0.00019723,2]
[346149256,1734751754371,-151.0,0.00019723,2]
[346149257,1734751754392,-162.31597202,0.00019723,2]
[346149258,1734751754413,-500.0,0.00019723,2]
[346149259,1734751754435,-529.94,0.00019723,2]
[346149260,1734751754459,-500.0,0.00019724,2]
[346149261,1734751754480,-412.19934031,0.00019724,2]
[346149262,1734751754502,-393.63218385,0.00019724,2]